bitfinex/quotes_SOLUSD_20220118
["timestamp","ask_amount","ask_price","bid_price","bid_amount"]
[1642481133580,21.0074,139.23,139.18,2.872]
[1642481133782,0.25,139.22,139.15,24.8801]
[1642481133980,0.25,139.22,139.16,0.25]
[1642481136886,66.92521819,139.24,139.16,0.25]
[1642481136887,26.8458,139.24,139.16,0.25]
[1642481137086,2.873,139.24,139.16,0.25]
[1642481138386,1.00077359,139.25,139.17,13.6471]
[1642481138787,1.00077359,139.25,139.18,0.25]
[1642481138987,1.00077359,139.25,139.19,2.873]
[1642481139286,1.00077359,139.25,139.2,0.25]
[1642481140486,1.00077359,139.25,139.19,0.25]
[1642481141590,47.31123581,139.24,139.19,0.25]
[1642481143187,119.13123581,139.24,139.16,2.873]
[1642481143388,10.7778,139.22,139.14,26.90868876]
[1642481143587,36.04694639,139.21,139.14,26.90868876]
[1642481143887,39.17094639,139.21,139.14,23.0163]
[1642481144094,3.124,139.21,139.14,23.0163]
[1642481144790,3.124,139.21,139.15,0.25]
[1642481144991,2.874,139.21,139.15,0.25]
[1642481145187,41.77836589,139.21,139.15,0.25]
[1642481145687,2.874,139.21,139.15,0.25]
[1642481146590,13.6521,139.21,139.15,0.25]
[1642481146788,10.7781,139.21,139.15,0.25]
[1642481149296,16.7781,139.21,139.15,0.25]
[1642481151001,10.7781,139.21,139.15,0.25]
[1642481152001,0.25,139.2,139.14,23.0163]
[1642481152205,3.124,139.2,139.14,23.0163]
[1642481153304,13.9028,139.2,139.14,23.0163]
[1642481153505,11.0288,139.2,139.14,23.0163]
[1642481155636,58.67121573,139.19,139.11,2.874]
[1642481155836,0.25,139.18,139.11,2.874]
[1642481156037,3.124,139.18,139.11,2.874]
[1642481157638,13.9045,139.18,139.11,2.874]
[1642481158937,85.7245,139.18,139.09,27.5184]
[1642481159138,109.4611,139.18,139.1,0.25]
[1642481159337,115.4611,139.18,139.1,0.25]
[1642481162842,115.4611,139.18,139.09,24.6444]
[1642481164242,115.4611,139.18,139.1,0.25]
[1642481164443,116.64487987,139.18,139.1,0.25]
[1642481165646,116.64487987,139.18,139.09,24.6444]
[1642481166248,116.64487987,139.18,139.1,0.25]
[1642481166450,10.05777987,139.18,139.1,0.25]
[1642481166650,10.05777987,139.18,139.1,8.226]
[1642481166850,7.18377987,139.18,139.1,9.48895046]
[1642481167851,1.18377987,139.18,139.11,13.6526]
[1642481168050,1.18377987,139.18,139.11,37.4887]
[1642481168353,1.18377987,139.18,139.12,0.25]
[1642481168751,0.25,139.17,139.12,0.25]
[1642481170453,0.25,139.17,139.11,34.6147]
[1642481170865,4.05777987,139.18,139.12,0.25]
[1642481171056,1.18377987,139.18,139.12,11.0282]
[1642481171658,7.18377987,139.18,139.12,11.0282]
[1642481173371,3.124,139.17,139.12,13.6522]
[1642481173669,39.82451888,139.16,139.12,2.874]
[1642481173871,0.25,139.15,139.12,2.874]
[1642481174099,0.25,139.15,139.13,6.06439994]
[1642481174498,2.874,139.17,139.13,6.06439994]
[1642481175699,6.0,139.17,139.13,6.06439994]
[1642481175902,52.83325917,139.18,139.13,6.06439994]
[1642481178803,0.25,139.17,139.13,6.06439994]
[1642481179003,3.124,139.17,139.13,6.06439994]
[1642481179402,2.874,139.17,139.13,6.06439994]
[1642481180406,46.83325917,139.18,139.13,6.06439994]
[1642481181305,2.874,139.17,139.13,6.06439994]
[1642481181905,74.694,139.17,139.13,6.06439994]
[1642481182305,0.25,139.16,139.13,6.06439994]
[1642481183005,0.25,139.16,139.09,2.874]
[1642481183207,0.25,139.16,139.11,0.25]
[1642481184107,99.041,139.17,139.1,0.25]
[1642481184306,96.167,139.17,139.1,0.25]
[1642481184506,24.347,139.17,139.1,0.25]
[1642481185206,35.1283,139.17,139.1,0.25]
[1642481186211,106.9483,139.17,139.1,0.25]
[1642481186614,41.1283,139.17,139.1,0.25]
[1642481189014,41.1283,139.17,139.1,2.29043167]
[1642481190916,30.347,139.17,139.1,2.29043167]
[1642481191119,4.90929043,139.18,139.1,2.29043167]
[1642481191323,2.03529043,139.18,139.1,2.29043167]
[1642481191916,2.03529043,139.18,139.11,23.0582]
[1642481192120,2.03529043,139.18,139.11,25.9322]
[1642481192321,2.03529043,139.18,139.12,0.25]
[1642481192846,12.81559043,139.19,139.12,0.25]
[1642481193851,0.25,139.18,139.12,0.25]
[1642481194049,0.25,139.18,139.11,25.09863167]
[1642481194249,13.9045,139.18,139.11,25.09863167]
[1642481194449,47.43651877,139.17,139.11,2.04043167]
[1642481194849,0.25,139.16,139.11,2.04043167]
[1642481195951,0.25,139.16,139.09,28.18243167]
[1642481196248,3.125,139.16,139.1,0.25]
[1642481196452,11.032,139.16,139.1,0.25]
[1642481196749,71.82,139.15,139.1,0.25]
[1642481196950,115.19854079,139.14,139.1,0.25]
[1642481197150,43.37854079,139.14,139.1,0.25]
[1642481197551,2.875,139.15,139.1,0.25]
[1642481198251,8.875,139.15,139.1,0.25]
[1642481198551,39.86078351,139.15,139.09,0.25]
[1642481198753,56.64368351,139.15,139.09,0.25]
[1642481199653,71.82,139.14,139.09,0.25]
[1642481199853,82.6035,139.14,139.09,0.25]
[1642481200054,82.6035,139.14,139.08,2.04043167]
[1642481200253,0.25,139.13,139.08,2.04043167]
[1642481200455,2.875,139.12,139.08,2.04043167]
[1642481200653,44.43352929,139.11,139.07,2.04043167]
[1642481201454,71.82,139.1,139.07,2.04043167]
[1642481201656,74.945,139.1,139.06,2.04043167]
[1642481202454,10.7878,139.09,139.06,2.04043167]
[1642481202654,74.696,139.08,139.06,2.04043167]
[1642481202856,109.71124389,139.08,139.04,2.875]
[1642481203356,3.126,139.07,139.04,2.875]
[1642481203556,13.915,139.07,139.04,2.875]
[1642481204358,71.82,139.06,139.04,2.875]
[1642481204559,10.789,139.07,139.02,2.04043167]
[1642481204760,10.789,139.07,139.01,2.04043167]
[1642481205059,82.609,139.07,139.01,2.04043167]
[1642481205260,88.609,139.07,139.01,2.04043167]
[1642481205459,88.609,139.07,139.02,2.04043167]
[1642481205660,16.789,139.07,139.02,2.04043167]
[1642481206461,88.609,139.07,139.02,2.04043167]
[1642481207263,88.609,139.07,139.01,2.04043167]
[1642481207663,88.609,139.07,139.02,0.25]
[1642481208064,16.789,139.07,139.02,2.29043167]
[1642481208665,88.609,139.07,139.02,2.29043167]
[1642481210066,88.609,139.07,139.02,2.04043167]
[1642481210867,16.789,139.07,139.02,2.04043167]
[1642481211666,88.609,139.07,139.02,2.04043167]
[1642481213271,88.609,139.07,139.03,0.25]
[1642481213667,77.82,139.07,139.03,0.25]
[1642481213869,6.0,139.07,139.03,0.25]
[1642481214271,13.106,139.09,139.03,0.25]
[1642481214474,10.23,139.09,139.03,0.25]
[1642481214669,2.876,139.1,139.03,0.25]
[1642481214870,0.25,139.09,139.03,0.25]
[1642481215669,0.25,139.09,139.03,24.5999]
[1642481215869,11.0368,139.1,139.03,24.5999]
[1642481216369,82.8568,139.1,139.03,26.64033167]
[1642481216569,82.6068,139.1,139.03,26.64033167]
[1642481216770,10.7868,139.1,139.03,26.64033167]
[1642481216974,2.876,139.11,139.03,44.77583167]
[1642481217170,26.35649043,139.12,139.03,44.77583167]
[1642481217370,2.03529043,139.12,139.03,44.77583167]
[1642481218269,2.03529043,139.12,139.03,45.03583167]
[1642481218670,12.81989043,139.13,139.05,2.04043167]
[1642481218873,12.81989043,139.13,139.06,0.25]
[1642481220275,10.7846,139.13,139.06,0.25]
[1642481220675,4.91129043,139.14,139.06,0.25]
[1642481220878,2.03529043,139.14,139.07,2.875]
[1642481221176,25.38859043,139.15,139.07,2.875]
[1642481221377,2.875,139.14,139.08,0.25]
[1642481222278,2.875,139.14,139.07,0.25]
[1642481222479,2.875,139.14,139.06,4.91543167]
[1642481222678,13.6587,139.14,139.06,4.91543167]
[1642481223879,13.6587,139.14,139.07,0.25]
[1642481224079,85.4787,139.14,139.07,0.25]
[1642481224780,85.4787,139.14,139.06,2.04043167]
[1642481225180,85.4787,139.14,139.07,0.25]
[1642481225382,91.4787,139.14,139.07,0.25]
[1642481226381,91.4787,139.14,139.06,2.29043167]
[1642481228108,93.51399043,139.14,139.06,0.25]
[1642481230914,93.51399043,139.14,139.06,2.29043167]
[1642481233013,82.6055,139.12,139.06,2.29043167]
[1642481233213,42.71596883,139.11,139.06,2.29043167]
[1642481233915,42.71596883,139.11,139.05,26.53893167]
[1642481234615,53.50216883,139.11,139.05,26.53893167]
[1642481235316,125.32216883,139.11,139.05,2.04043167]
[1642481235917,0.25,139.1,139.05,2.04043167]
[1642481236117,10.7881,139.09,139.05,2.04043167]
[1642481236321,41.75637842,139.08,139.05,2.04043167]
[1642481236721,41.75637842,139.08,139.03,2.04043167]
[1642481236917,41.75637842,139.08,139.03,2.29043167]
[1642481238020,26.9116,139.1,139.03,2.29043167]
[1642481238220,24.0356,139.1,139.03,2.29043167]
[1642481238420,30.0356,139.1,139.03,2.29043167]
[1642481238622,0.25,139.09,139.03,2.29043167]
[1642481239022,40.3253432,139.09,139.03,2.29043167]
[1642481240525,51.1128432,139.09,139.03,2.29043167]
[1642481241625,30.0356,139.1,139.03,2.29043167]
[1642481241826,6.0,139.1,139.03,10.03043167]
[1642481242026,13.6625,139.11,139.03,10.03043167]
[1642481242230,10.7865,139.11,139.04,22.99]
[1642481242430,2.03529043,139.12,139.04,22.99]
[1642481242626,51.60601657,139.13,139.05,0.25]
[1642481243429,3.17671555,139.13,139.05,0.25]
[1642481243727,11.92632512,139.13,139.05,2.29043167]
[1642481243926,14.80132512,139.13,139.05,2.29043167]
[1642481245027,14.80132512,139.13,139.06,2.04043167]
[1642481245252,20.80132512,139.13,139.06,2.04043167]
[1642481245455,20.80132512,139.13,139.07,0.25]
[1642481245655,17.92632512,139.13,139.07,0.25]
[1642481246656,1.14142512,139.13,139.07,0.25]
[1642481246854,1.14142512,139.13,139.06,37.48503167]
[1642481247057,1.14142512,139.13,139.06,47.71503167]
[1642481248261,1.14142512,139.13,139.07,3.125]
[1642481248457,1.14142512,139.13,139.07,5.16543167]
[1642481250561,1.14142512,139.13,139.07,2.29043167]
[1642481251664,4.01642512,139.13,139.07,2.29043167]
[1642481252263,20.80072512,139.13,139.07,2.29043167]
[1642481252564,14.80072512,139.13,139.07,2.29043167]
[1642481252864,0.25,139.12,139.07,2.04043167]
[1642481253063,2.875,139.11,139.07,2.04043167]
[1642481253266,41.36867311,139.1,139.07,2.04043167]
[1642481253665,41.36867311,139.1,139.06,26.70193167]
[1642481254566,52.15557311,139.1,139.06,26.70193167]
[1642481254768,52.15557311,139.1,139.06,24.6615]
[1642481254966,10.7869,139.1,139.06,24.6615]
[1642481256069,59.29470966,139.1,139.06,24.6615]
[1642481256469,59.29470966,139.1,139.05,2.04043167]
[1642481257576,0.25,139.09,139.05,2.04043167]
[1642481257770,10.7888,139.08,139.05,2.04043167]
[1642481257969,46.71180194,139.07,139.05,2.04043167]
[1642481259069,71.82,139.06,139.03,2.04043167]
[1642481259269,82.6099,139.06,139.03,2.29043167]
[1642481259970,82.6099,139.06,139.03,0.25]
[1642481260371,10.7899,139.06,139.03,0.25]
[1642481261177,10.7899,139.06,139.04,6.06439994]
[1642481261573,13.6648,139.08,139.04,6.06439994]
[1642481261772,16.7888,139.08,139.04,6.06439994]
[1642481262174,45.03219794,139.07,139.04,6.06439994]
[1642481262374,45.03219794,139.07,139.04,3.03219997]
[1642481262574,55.82129794,139.07,139.04,3.03219997]
[1642481262782,55.82129794,139.07,139.03,0.25]
[1642481263774,10.7891,139.07,139.03,0.25]
[1642481264876,8.876,139.08,139.03,0.25]
[1642481265077,35.2682,139.09,139.03,3.126]
[1642481265276,41.2682,139.09,139.03,0.25]
[1642481265677,35.2682,139.09,139.02,2.04043167]
[1642481265877,35.2682,139.09,139.02,24.76423167]
[1642481266978,35.2682,139.09,139.03,0.25]
[1642481267784,35.2682,139.09,139.03,2.29043167]
[1642481269279,24.4802,139.09,139.03,2.29043167]
[1642481269480,2.876,139.1,139.03,2.29043167]
[1642481269680,4.91129043,139.12,139.04,2.876]
[1642481269881,8.03529043,139.12,139.05,24.2906]
[1642481270083,2.03529043,139.12,139.05,24.2906]
[1642481270682,2.03529043,139.12,139.06,10.7833]
[1642481270883,2.03529043,139.12,139.07,0.25]
[1642481271185,42.62426743,139.13,139.07,0.25]
[1642481272015,53.40856743,139.13,139.07,0.25]
[1642481274917,42.62426743,139.13,139.07,0.25]
[1642481275116,13.6595,139.14,139.07,0.25]
[1642481275519,10.7835,139.14,139.07,23.5329]
[1642481275718,26.7864,139.15,139.07,23.5329]
[1642481276119,32.7864,139.15,139.07,23.5329]
[1642481276520,32.7864,139.15,139.07,34.3154]
[1642481277620,43.5692,139.15,139.07,34.3154]
[1642481279821,43.5692,139.15,139.07,37.1904]
[1642481280822,0.25,139.14,139.07,26.4079]
[1642481281026,11.0335,139.14,139.07,23.5329]
[1642481281225,36.27312809,139.13,139.07,23.5329]
[1642481281426,39.14812809,139.13,139.07,23.5329]
[1642481282024,36.27312809,139.13,139.07,23.5329]
[1642481284427,36.27312809,139.13,139.07,26.4079]
[1642481285230,10.7835,139.14,139.07,26.4079]
[1642481285829,10.7835,139.14,139.07,28.44833167]
[1642481286231,10.7835,139.14,139.07,34.44833167]
[1642481289233,34.6941,139.15,139.07,45.23103167]
[1642481289434,4.91029043,139.17,139.07,45.23103167]
[1642481289631,2.03529043,139.17,139.08,10.23]
[1642481289832,2.03529043,139.17,139.09,26.8879]
[1642481290032,8.03529043,139.17,139.09,34.8189]
[1642481290259,2.03529043,139.17,139.09,40.8189]
[1642481290433,8.03529043,139.17,139.09,40.8189]
[1642481290633,2.03529043,139.17,139.09,40.8189]
[1642481290837,3.5395034,139.19,139.1,2.04043167]
[1642481291033,6.0,139.17,139.11,26.448]
[1642481291235,14.3191034,139.19,139.11,34.6037]
[1642481291439,6.0,139.17,139.11,40.6037]
[1642481291634,14.3191034,139.19,139.11,40.6037]
[1642481292036,20.3191034,139.19,139.11,40.6037]
[1642481292634,18.28381297,139.19,139.11,40.6037]
[1642481292834,2.874,139.18,139.11,40.6037]
[1642481293034,21.15781297,139.19,139.11,40.6037]
[1642481294437,18.28381297,139.19,139.11,40.6037]
[1642481297240,18.28381297,139.19,139.11,29.574]
[1642481297640,20.07286569,139.19,139.11,29.574]
[1642481297868,2.874,139.18,139.11,29.574]
[1642481298269,41.24801303,139.15,139.11,29.574]
[1642481298469,10.7824,139.16,139.11,29.574]
[1642481298672,2.874,139.18,139.11,29.574]
[1642481299677,13.655,139.18,139.11,29.574]
[1642481300175,13.655,139.18,139.12,0.25]
[1642481300671,13.655,139.18,139.11,6.0]
[1642481300873,13.655,139.18,139.08,6.0]
[1642481300874,0.25,139.17,139.08,6.0]
[1642481301073,46.21808328,139.14,139.07,2.04043167]
[1642481301274,69.47178328,139.14,139.07,35.68503167]
[1642481301472,69.47178328,139.14,139.07,32.81003167]
[1642481301672,69.47178328,139.14,139.07,24.7696]
[1642481302473,80.25528328,139.14,139.07,24.7696]
[1642481302672,80.25528328,139.14,139.08,0.25]
[1642481303871,80.25528328,139.14,139.05,4.91543167]
[1642481303872,0.25,139.13,139.05,4.91543167]
[1642481304072,3.125,139.13,139.05,4.91543167]
[1642481304275,10.7862,139.11,139.05,4.91543167]
[1642481304474,2.876,139.1,139.05,4.91543167]
[1642481304673,41.98062431,139.09,139.05,4.91543167]
[1642481304975,41.98062431,139.09,139.05,2.04043167]
[1642481305173,41.98062431,139.09,139.03,23.8492]
[1642481305386,41.98062431,139.09,139.04,0.25]
[1642481305591,2.876,139.12,139.04,0.25]
[1642481305787,0.25,139.11,139.04,0.25]
[1642481305987,2.876,139.1,139.04,0.25]
[1642481306189,2.876,139.13,139.04,0.25]
[1642481306388,3.126,139.13,139.04,0.25]
[1642481306589,3.126,139.13,139.03,23.8492]
[1642481306590,10.7871,139.1,139.03,23.8492]
[1642481307888,10.7871,139.1,139.03,34.6351]
[1642481308089,44.85800805,139.12,139.03,34.6351]
[1642481308090,55.64370805,139.12,139.04,2.876]
[1642481308490,10.7857,139.12,139.05,0.25]
[1642481309122,2.876,139.13,139.05,11.0346]
[1642481309321,10.7841,139.14,139.06,2.875]
[1642481309523,44.90532504,139.13,139.06,2.875]
[1642481309722,44.90532504,139.13,139.07,0.25]
[1642481313923,55.68962504,139.13,139.07,0.25]
[1642481317138,55.68962504,139.13,139.06,0.25]
[1642481319233,2.875,139.12,139.06,0.25]
[1642481319436,3.125,139.12,139.06,0.25]
[1642481319634,10.7861,139.11,139.06,0.25]
[1642481322339,19.6599,139.13,139.06,0.25]
[1642481322536,13.6599,139.13,139.06,0.25]
[1642481322736,2.875,139.13,139.06,0.25]
[1642481323437,48.143679,139.13,139.06,0.25]
[1642481324639,60.96346943,139.13,139.06,0.25]
[1642481328843,132.78346943,139.13,139.06,0.25]
[1642481329245,0.25,139.12,139.06,0.25]
[1642481329443,13.6616,139.11,139.06,0.25]
[1642481329644,71.82,139.1,139.05,2.875]
[1642481330044,2.875,139.11,139.05,2.875]
[1642481330246,13.106,139.12,139.04,2.04043167]
[1642481330444,13.106,139.12,139.05,2.876]
[1642481330445,10.7866,139.1,139.05,2.876]
[1642481330646,10.7866,139.1,139.04,2.876]
[1642481330846,12.26529043,139.12,139.04,2.876]
[1642481331045,12.26529043,139.12,139.05,0.25]
[1642481331644,23.05099043,139.12,139.05,0.25]
[1642481332245,12.82099043,139.12,139.05,0.25]
[1642481333649,12.82099043,139.12,139.05,11.0346]
[1642481334250,71.82,139.09,139.05,0.25]
[1642481334448,44.07337076,139.08,139.04,2.04043167]
[1642481334648,115.89337076,139.08,139.04,2.04043167]
[1642481334849,44.07337076,139.08,139.05,0.25]
[1642481335949,44.07337076,139.08,139.02,2.29043167]
[1642481337152,44.07337076,139.08,139.02,5.16643167]
[1642481337853,126.68167076,139.08,139.02,5.16643167]
[1642481338053,126.68167076,139.08,139.02,2.29043167]
[1642481339253,139.55967076,139.08,139.02,2.29043167]
[1642481339654,0.25,139.07,139.02,2.29043167]
[1642481339860,56.0,139.05,138.99,6.76838876]
[1642481340157,46.64565224,139.03,139.01,2.04929047]
[1642481340353,74.696,139.02,139.01,2.04929047]
[1642481341357,74.696,139.02,138.98,3.89238876]
[1642481341558,85.4901,139.02,138.94,111.7]
[1642481341756,85.4901,139.02,138.96,0.25]
[1642481342784,85.4901,139.02,138.95,0.25]
[1642481344555,85.4901,139.02,138.94,114.578]
[1642481344755,0.25,139.01,138.94,114.578]
[1642481344956,71.82,138.98,138.93,3.89238876]
[1642481345156,122.17892538,138.98,138.93,3.89238876]
[1642481345357,119.30092538,138.98,138.93,3.89238876]
[1642481345959,38.8682,139.0,138.93,3.89238876]
[1642481346257,0.25,138.99,138.94,0.25]
[1642481346656,2.878,139.0,138.94,0.25]
[1642481346857,49.35531348,139.0,138.94,0.25]
[1642481347058,121.17531348,139.0,138.94,0.25]
[1642481347358,121.17531348,139.0,138.92,0.25]
[1642481347558,10.7959,138.98,138.92,0.25]
[1642481351061,60.15011348,139.0,138.92,11.0445]
[1642481351260,60.15011348,139.0,138.93,2.878]
[1642481351459,131.97011348,139.0,138.93,2.878]
[1642481351659,131.97011348,139.0,138.94,0.25]
[1642481352258,60.15011348,139.0,138.94,0.25]
[1642481353060,33.7019,139.01,138.94,0.25]
[1642481353361,10.7936,139.01,138.94,0.25]
[1642481354365,13.6716,139.01,138.94,0.25]
[1642481355360,82.6136,139.01,138.93,0.25]
[1642481355559,10.7952,138.99,138.93,0.25]
[1642481356263,10.7952,138.99,138.92,0.25]
[1642481357264,0.25,138.98,138.92,0.25]
[1642481357462,10.7974,138.97,138.92,0.25]
[1642481357663,48.17352533,138.97,138.92,0.25]
[1642481358667,48.17352533,138.97,138.91,0.25]
[1642481359066,48.17352533,138.97,138.9,0.25]
[1642481359865,71.82,138.96,138.9,0.25]
[1642481360064,10.7989,138.95,138.9,0.25]
[1642481360268,82.6189,138.95,138.9,0.25]
[1642481360467,10.7989,138.95,138.9,0.25]
[1642481361271,10.7989,138.95,138.89,1.12674745]
[1642481361473,82.6189,138.95,138.89,1.12674745]
[1642481363873,10.7989,138.95,138.89,0.87674745]
[1642481364086,10.8011,138.93,138.89,0.87674745]
[1642481364280,72.07,138.94,138.89,0.87674745]
[1642481364281,118.43481878,138.92,138.89,0.87674745]
[1642481365299,118.43481878,138.92,138.89,1.12674745]
[1642481365696,118.43481878,138.92,138.89,0.87674745]
[1642481365697,10.8018,138.91,138.89,0.87674745]
[1642481367400,2.879,138.9,138.85,6.77138876]
[1642481367600,54.07485739,138.89,138.85,6.77138876]
[1642481367800,3.13,138.88,138.85,6.77138876]
[1642481367999,11.722,138.88,138.85,6.77138876]
[1642481368200,11.472,138.88,138.85,6.77138876]
[1642481368399,8.592,138.88,138.85,6.77138876]
[1642481368599,8.592,138.88,138.85,2.879]
[1642481368799,10.8058,138.87,138.85,2.879]
[1642481370300,43.27125739,138.89,138.85,2.879]
[1642481370502,54.07485739,138.89,138.85,2.879]
[1642481370803,10.8036,138.89,138.85,2.879]
[1642481371600,10.8036,138.89,138.82,2.88]
[1642481371802,55.67510816,138.89,138.82,3.13]
[1642481372601,55.67510816,138.89,138.82,13.9327]
[1642481374102,55.67510816,138.89,138.82,11.0527]
[1642481375208,10.8036,138.89,138.82,11.0527]
[1642481378505,13.6836,138.89,138.82,11.0527]
[1642481379506,10.8036,138.89,138.82,11.0527]
[1642481380209,10.8036,138.89,138.82,17.0527]
[1642481380608,10.8036,138.89,138.82,19.9327]
[1642481381108,85.5023,138.9,138.82,19.9327]
[1642481381309,10.8023,138.9,138.82,19.9327]
[1642481382713,2.88,138.89,138.82,17.0527]
[1642481384115,2.88,138.9,138.82,17.0527]
[1642481385618,52.42701573,138.91,138.82,17.0527]
[1642481386016,63.22861573,138.91,138.82,17.0527]
[1642481386917,63.22861573,138.91,138.83,13.6815]
[1642481387217,63.22861573,138.91,138.83,41.741837]
[1642481387418,63.22861573,138.91,138.84,0.25]
[1642481388019,52.99861573,138.91,138.84,0.25]
[1642481389720,11.0526,138.9,138.83,6.0]
[1642481389920,47.32617602,138.88,138.83,6.0]
[1642481390124,47.32617602,138.88,138.82,3.89238876]
[1642481390820,47.32617602,138.88,138.81,29.4625]
[1642481391021,47.32617602,138.88,138.82,0.25]
[1642481391223,10.8041,138.88,138.82,0.25]
[1642481396553,82.6241,138.88,138.81,44.15838876]
[1642481396753,85.5041,138.88,138.81,44.15838876]
[1642481396954,85.5041,138.88,138.81,33.35488876]
[1642481397354,85.5041,138.88,138.81,29.4625]
[1642481397754,85.5041,138.88,138.82,0.25]
[1642481398356,91.5041,138.88,138.82,0.25]
[1642481399157,85.5041,138.88,138.82,0.25]
[1642481399456,0.25,138.87,138.8,3.89238876]
[1642481399658,59.0617335,138.85,138.8,3.89238876]
[1642481399858,74.7,138.84,138.8,3.89238876]
[1642481400155,74.7,138.84,138.79,6.77238876]
[1642481400557,2.88,138.84,138.79,6.77238876]
[1642481400757,2.88,138.84,138.8,0.25]
[1642481400957,24.8271,138.87,138.8,0.25]
[1642481401456,96.6471,138.87,138.8,0.25]
[1642481401656,24.8271,138.87,138.8,0.25]
[1642481402257,2.88,138.88,138.8,11.0539]
[1642481402460,21.0337,138.89,138.81,2.88]
[1642481402861,21.0337,138.89,138.82,0.25]
[1642481403464,10.23,138.89,138.82,11.0528]
[1642481403864,16.23,138.89,138.82,11.0528]
[1642481404868,29.9134,138.89,138.82,0.25]
[1642481405869,0.25,138.88,138.81,0.25]
[1642481406072,19.6834,138.89,138.81,0.25]
[1642481406673,19.6834,138.89,138.81,11.0534]
[1642481406872,45.81495935,138.88,138.81,0.25]
[1642481407073,10.805,138.87,138.81,0.25]
[1642481407272,13.685,138.87,138.81,0.25]
[1642481408872,71.82,138.86,138.8,23.8361]
[1642481409080,46.00595401,138.85,138.8,23.8361]
[1642481409272,53.37795401,138.85,138.79,3.89238876]
[1642481409472,71.82,138.84,138.8,0.25]
[1642481410074,82.6278,138.84,138.8,0.25]
[1642481410677,82.6278,138.84,138.77,3.89238876]
[1642481412074,82.6278,138.84,138.78,0.25]
[1642481418880,82.6278,138.84,138.77,0.25]
[1642481422384,46.27779521,138.82,138.77,0.25]
[1642481422684,52.19279521,138.82,138.76,0.25]
[1642481422884,124.01279521,138.82,138.76,0.25]
[1642481423585,124.01279521,138.82,138.75,25.8594]
[1642481423789,0.25,138.81,138.74,111.7]
[1642481423988,51.63574398,138.79,138.73,3.89238876]
[1642481424189,59.06574398,138.79,138.73,3.89238876]
[1642481425190,59.06574398,138.79,138.74,0.25]
[1642481425414,51.63574398,138.79,138.74,0.25]
[1642481425612,51.63574398,138.79,138.72,8.23106488]
[1642481426613,51.63574398,138.79,138.72,4.14238876]
[1642481426913,123.45574398,138.79,138.71,25.3242]
[1642481428316,123.45574398,138.79,138.72,0.25]
[1642481430321,0.25,138.78,138.72,0.25]
[1642481430520,10.812,138.78,138.72,0.25]
[1642481430720,11.062,138.78,138.72,0.25]
[1642481430920,10.812,138.78,138.72,0.25]
[1642481431622,13.694,138.78,138.72,0.25]
[1642481432621,10.812,138.78,138.72,0.25]
[1642481434724,40.82404398,138.79,138.72,0.25]
[1642481434926,85.5131,138.8,138.72,11.0606]
[1642481435328,0.25,138.79,138.72,11.0606]
[1642481437063,0.25,138.79,138.73,4.10602607]
[1642481437262,0.25,138.79,138.74,0.25]
[1642481437665,0.25,138.79,138.73,27.27582607]
[1642481437964,0.25,138.79,138.73,23.1698]
[1642481438164,11.0614,138.79,138.73,23.1698]
[1642481438864,11.0614,138.79,138.74,0.25]
[1642481440865,0.25,138.79,138.74,0.25]
[1642481451387,44.5557398,138.8,138.74,0.25]
[1642481451584,26.5215,138.81,138.74,0.25]
[1642481451585,2.882,138.81,138.74,0.25]
[1642481451883,10.23,138.84,138.75,2.882]